[Event "Titled Tuesday Blitz February 14 Early 2023"]
[White "Le, Tuan Minh"]
[Black "Makarian, Rudik"]
[WhiteFideId "12401153"]
[BlackFideId "44105681"]
[WhiteElo "2542"]
[BlackElo "2545"]
[Result "1/2-1/2"]
[Round "10"]
[TimeControl "180+2"]
[Date "2023.02.14"]
[WhiteClock "0:00:09"]
[BlackClock "0:00:09"]

1. d4 {[%clk 0:03:00]}  Nf6 {[%clk 0:03:00]} 2. Nf3 {[%clk 0:02:58]}  c5 {[%clk 0:03:00]} 3. c3 {[%clk 0:02:58]}  d5 {[%clk 0:02:59]} 4. Bf4 {[%clk 0:02:57]}  Nc6 {[%clk 0:02:58]} 5. e3 {[%clk 0:02:58]}  Qb6 {[%clk 0:02:51]} 6. Qc2 {[%clk 0:02:57]}  g6 {[%clk 0:02:41]} 7. Nbd2 {[%clk 0:02:56]}  Bg7 {[%clk 0:02:28]} 8. Be2 {[%clk 0:02:56]}  O-O {[%clk 0:02:27]} 9. O-O {[%clk 0:02:56]}  Bf5 {[%clk 0:02:25]} 10. dxc5 {[%clk 0:02:56]}  Qxc5 {[%clk 0:02:24]} 11. Qb3 {[%clk 0:02:56]}  Na5 {[%clk 0:02:02]} 12. Qa4 {[%clk 0:02:56]}  Qb6 {[%clk 0:01:54]} 13. Rac1 {[%clk 0:02:25]}  Rac8 {[%clk 0:01:45]} 14. Rfd1 {[%clk 0:02:18]}  Rfd8 {[%clk 0:01:44]} 15. h3 {[%clk 0:02:08]}  a6 {[%clk 0:01:40]} 16. Bh2 {[%clk 0:01:41]}  h6 {[%clk 0:01:30]} 17. b4 {[%clk 0:01:27]}  Nc6 {[%clk 0:01:21]} 18. a3 {[%clk 0:01:27]}  Ne4 {[%clk 0:01:15]} 19. Nxe4 {[%clk 0:01:27]}  Bxe4 {[%clk 0:01:13]} 20. Nd4 {[%clk 0:01:21]}  Ne5 {[%clk 0:00:54]} 21. Bxe5 {[%clk 0:00:43]}  Bxe5 {[%clk 0:00:54]} 22. Qb3 {[%clk 0:00:44]}  Kg7 {[%clk 0:00:41]} 23. Qb2 {[%clk 0:00:32]}  Bf6 {[%clk 0:00:39]} 24. Nb3 {[%clk 0:00:24]}  Bf5 {[%clk 0:00:24]} 25. Qd2 {[%clk 0:00:23]}  h5 {[%clk 0:00:20]} 26. Nd4 {[%clk 0:00:23]}  Bd7 {[%clk 0:00:19]} 27. Bd3 {[%clk 0:00:19]}  Ba4 {[%clk 0:00:19]} 28. Bc2 {[%clk 0:00:20]}  Bxc2 {[%clk 0:00:19]} 29. Rxc2 {[%clk 0:00:20]}  e6 {[%clk 0:00:18]} 30. Qd3 {[%clk 0:00:17]}  Rc4 {[%clk 0:00:17]} 31. Rdc1 {[%clk 0:00:16]}  Rdc8 {[%clk 0:00:17]} 32. Nb3 {[%clk 0:00:16]}  Qd6 {[%clk 0:00:15]} 33. Nd2 {[%clk 0:00:13]}  R4c6 {[%clk 0:00:13]} 34. e4 {[%clk 0:00:11]}  b5 {[%clk 0:00:11]} 35. g3 {[%clk 0:00:07]}  Qe5 {[%clk 0:00:10]} 36. exd5 {[%clk 0:00:07]}  Qxd5 {[%clk 0:00:11]} 37. Qxd5 {[%clk 0:00:05]}  exd5 {[%clk 0:00:12]} 38. Nb3 {[%clk 0:00:05]}  Rxc3 {[%clk 0:00:12]} 39. Nc5 {[%clk 0:00:05]}  Rxc2 {[%clk 0:00:10]} 40. Rxc2 {[%clk 0:00:06]}  Ra8 {[%clk 0:00:10]} 41. Rd2 {[%clk 0:00:05]}  d4 {[%clk 0:00:10]} 42. Rd3 {[%clk 0:00:06]}  a5 {[%clk 0:00:10]} 43. Ne4 {[%clk 0:00:06]}  axb4 {[%clk 0:00:10]} 44. axb4 {[%clk 0:00:07]}  Ra1+ {[%clk 0:00:10]} 45. Kg2 {[%clk 0:00:07]}  Rb1 {[%clk 0:00:08]} 46. Nxf6 {[%clk 0:00:05]}  Kxf6 {[%clk 0:00:09]} 47. Rxd4 {[%clk 0:00:06]}  Rb3 {[%clk 0:00:09]} 48. f4 {[%clk 0:00:03]}  Ke6 {[%clk 0:00:09]} 49. h4 {[%clk 0:00:03]}  Kf6 {[%clk 0:00:08]} 50. Kf2 {[%clk 0:00:03]}  Ke6 {[%clk 0:00:08]} 51. Kg2 {[%clk 0:00:03]}  Kf6 {[%clk 0:00:08]} 52. Kh3 {[%clk 0:00:03]}  Ke6 {[%clk 0:00:08]} 53. Re4+ {[%clk 0:00:03]}  Kd5 {[%clk 0:00:07]} 54. Re7 {[%clk 0:00:03]}  Rxb4 {[%clk 0:00:07]} 55. Rxf7 {[%clk 0:00:03]}  Rc4 {[%clk 0:00:08]} 56. f5 {[%clk 0:00:03]}  gxf5 {[%clk 0:00:04]} 57. Rxf5+ {[%clk 0:00:04]}  Kc6 {[%clk 0:00:05]} 58. Rxh5 {[%clk 0:00:05]}  b4 {[%clk 0:00:06]} 59. Re5 {[%clk 0:00:05]}  b3 {[%clk 0:00:06]} 60. Re1 {[%clk 0:00:06]}  b2 {[%clk 0:00:06]} 61. Rb1 {[%clk 0:00:07]}  Rb4 {[%clk 0:00:06]} 62. h5 {[%clk 0:00:07]}  Kd6 {[%clk 0:00:06]} 63. g4 {[%clk 0:00:07]}  Ke6 {[%clk 0:00:06]} 64. g5 {[%clk 0:00:06]}  Kf5 {[%clk 0:00:03]} 65. g6 {[%clk 0:00:06]}  Kf6 {[%clk 0:00:04]} 66. Kg3 {[%clk 0:00:06]}  Kg7 {[%clk 0:00:03]} 67. Kf3 {[%clk 0:00:06]}  Kh6 {[%clk 0:00:04]} 68. Ke3 {[%clk 0:00:07]}  Rb5 {[%clk 0:00:03]} 69. Kd4 {[%clk 0:00:06]}  Rb7 {[%clk 0:00:03]} 70. Kd5 {[%clk 0:00:04]}  Kxh5 {[%clk 0:00:03]} 71. Kc6 {[%clk 0:00:04]}  Rg7 {[%clk 0:00:03]} 72. Rxb2 {[%clk 0:00:05]}  Rxg6+ {[%clk 0:00:04]} 73. Kd5 {[%clk 0:00:05]}  Rg5+ {[%clk 0:00:04]} 74. Ke4 {[%clk 0:00:06]}  Rg4+ {[%clk 0:00:05]} 75. Kf5 {[%clk 0:00:06]}  Rg5+ {[%clk 0:00:05]} 76. Kf4 {[%clk 0:00:07]}  Ra5 {[%clk 0:00:06]} 77. Rb6 {[%clk 0:00:07]}  Ra4+ {[%clk 0:00:05]} 78. Kf5 {[%clk 0:00:08]}  Ra5+ {[%clk 0:00:06]} 79. Kf6 {[%clk 0:00:08]}  Kg4 {[%clk 0:00:06]} 80. Rb4+ {[%clk 0:00:09]}  Kf3 {[%clk 0:00:06]} 81. Ke6 {[%clk 0:00:09]}  Ra3 {[%clk 0:00:06]} 82. Kf5 {[%clk 0:00:09]}  Ra5+ {[%clk 0:00:06]} 83. Ke6 {[%clk 0:00:09]}  Ra8 {[%clk 0:00:07]} 84. Kd5 {[%clk 0:00:08]}  Ke2 {[%clk 0:00:07]} 85. Rb2+ {[%clk 0:00:08]}  Kd3 {[%clk 0:00:07]} 86. Rh2 {[%clk 0:00:09]}  Rd8+ {[%clk 0:00:07]} 87. Kc6 {[%clk 0:00:09]}  Rc8+ {[%clk 0:00:08]} 88. Kb7 {[%clk 0:00:09]}  Rg8 {[%clk 0:00:08]} 89. Kc6 {[%clk 0:00:09]}  Rc8+ {[%clk 0:00:08]} 90. Kd7 {[%clk 0:00:09]}  Rg8 {[%clk 0:00:09]} 1/2-1/2


[Site "https://www.chess.com"]

[Event "Titled Tuesday Blitz February 14 Early 2023"]
[White "Vokhidov, Shamsiddin"]
[Black "Sarana, Alexey"]
[WhiteFideId "14204223"]
[BlackFideId "24133795"]
[WhiteElo "2586"]
[BlackElo "2685"]
[Result "1/2-1/2"]
[Round "10"]
[TimeControl "180+2"]
[Date "2023.02.14"]
[WhiteClock "0:00:05"]
[BlackClock "0:00:06"]

1. e4 {[%clk 0:03:00]}  c5 {[%clk 0:03:00]} 2. Nf3 {[%clk 0:03:01]}  d6 {[%clk 0:03:00]} 3. Bb5+ {[%clk 0:03:01]}  Bd7 {[%clk 0:03:01]} 4. Bxd7+ {[%clk 0:03:01]}  Nxd7 {[%clk 0:03:01]} 5. O-O {[%clk 0:03:01]}  e6 {[%clk 0:03:01]} 6. Qe2 {[%clk 0:02:58]}  Be7 {[%clk 0:02:58]} 7. d4 {[%clk 0:02:47]}  cxd4 {[%clk 0:02:59]} 8. Nxd4 {[%clk 0:02:48]}  Rc8 {[%clk 0:02:57]} 9. c4 {[%clk 0:02:47]}  Qa5 {[%clk 0:02:55]} 10. b3 {[%clk 0:02:43]}  Ngf6 {[%clk 0:02:08]} 11. Bb2 {[%clk 0:02:42]}  O-O {[%clk 0:02:05]} 12. Nc3 {[%clk 0:02:41]}  a6 {[%clk 0:02:04]} 13. f4 {[%clk 0:02:32]}  Rfe8 {[%clk 0:01:58]} 14. Kh1 {[%clk 0:02:31]}  Bf8 {[%clk 0:01:56]} 15. Rae1 {[%clk 0:02:23]}  Qh5 {[%clk 0:01:53]} 16. Nf3 {[%clk 0:02:19]}  Ng4 {[%clk 0:01:23]} 17. h3 {[%clk 0:02:17]}  Nh6 {[%clk 0:01:22]} 18. Rd1 {[%clk 0:02:12]}  Nc5 {[%clk 0:01:18]} 19. Kg1 {[%clk 0:02:02]}  f5 {[%clk 0:01:07]} 20. Rfe1 {[%clk 0:01:32]}  fxe4 {[%clk 0:01:06]} 21. Nxe4 {[%clk 0:01:33]}  Nf5 {[%clk 0:00:59]} 22. g4 {[%clk 0:01:22]}  Qxh3 {[%clk 0:00:51]} 23. Nfg5 {[%clk 0:01:23]}  Qh4 {[%clk 0:00:33]} 24. Nxc5 {[%clk 0:01:08]}  Rxc5 {[%clk 0:00:33]} 25. gxf5 {[%clk 0:01:02]}  Rxf5 {[%clk 0:00:33]} 26. Bc1 {[%clk 0:00:58]}  Rf6 {[%clk 0:00:22]} 27. Qh2 {[%clk 0:00:57]}  Qg4+ {[%clk 0:00:22]} 28. Qg2 {[%clk 0:00:56]}  Qh5 {[%clk 0:00:22]} 29. Rd3 {[%clk 0:00:41]}  h6 {[%clk 0:00:22]} 30. Rh3 {[%clk 0:00:37]}  Qg6 {[%clk 0:00:23]} 31. Ne4 {[%clk 0:00:37]}  Qxg2+ {[%clk 0:00:17]} 32. Kxg2 {[%clk 0:00:38]}  Rf5 {[%clk 0:00:17]} 33. Rg3 {[%clk 0:00:35]}  Rd8 {[%clk 0:00:15]} 34. Bb2 {[%clk 0:00:34]}  d5 {[%clk 0:00:14]} 35. cxd5 {[%clk 0:00:35]}  exd5 {[%clk 0:00:15]} 36. Nf6+ {[%clk 0:00:34]}  Kf7 {[%clk 0:00:14]} 37. Ng4 {[%clk 0:00:33]}  Rxf4 {[%clk 0:00:13]} 38. Ne5+ {[%clk 0:00:32]}  Kg8 {[%clk 0:00:13]} 39. Ng6 {[%clk 0:00:33]}  Rf7 {[%clk 0:00:14]} 40. Nxf8 {[%clk 0:00:25]}  Rdxf8 {[%clk 0:00:15]} 41. Bd4 {[%clk 0:00:24]}  Kh7 {[%clk 0:00:14]} 42. Re5 {[%clk 0:00:23]}  Rd7 {[%clk 0:00:13]} 43. Re6 {[%clk 0:00:18]}  Rf4 {[%clk 0:00:12]} 44. Be3 {[%clk 0:00:14]}  Rf5 {[%clk 0:00:11]} 45. Bd4 {[%clk 0:00:13]}  Rf4 {[%clk 0:00:11]} 46. Be3 {[%clk 0:00:13]}  Rf5 {[%clk 0:00:12]} 47. Rg4 {[%clk 0:00:14]}  Rh5 {[%clk 0:00:05]} 48. Bd4 {[%clk 0:00:13]}  Rf5 {[%clk 0:00:05]} 49. Kg3 {[%clk 0:00:13]}  Rh5 {[%clk 0:00:05]} 50. Reg6 {[%clk 0:00:13]}  Rg5 {[%clk 0:00:03]} 51. R6xg5 {[%clk 0:00:13]}  hxg5 {[%clk 0:00:04]} 52. Rxg5 {[%clk 0:00:14]}  Kh6 {[%clk 0:00:04]} 53. Kg4 {[%clk 0:00:14]}  b5 {[%clk 0:00:01]} 54. b4 {[%clk 0:00:14]}  Rc7 {[%clk 0:00:01]} 55. Rxd5 {[%clk 0:00:13]}  Rc4 {[%clk 0:00:02]} 56. Rd6+ {[%clk 0:00:13]}  Kh7 {[%clk 0:00:01]} 57. Kg5 {[%clk 0:00:11]}  Rxb4 {[%clk 0:00:01]} 58. Rd7 {[%clk 0:00:11]}  Kg8 {[%clk 0:00:02]} 59. Rxg7+ {[%clk 0:00:11]}  Kf8 {[%clk 0:00:03]} 60. Rd7 {[%clk 0:00:08]}  Ke8 {[%clk 0:00:03]} 61. Rd6 {[%clk 0:00:08]}  Ke7 {[%clk 0:00:03]} 62. Be5 {[%clk 0:00:06]}  Ra4 {[%clk 0:00:03]} 63. Rd2 {[%clk 0:00:04]}  Ke6 {[%clk 0:00:03]} 64. Bf4 {[%clk 0:00:03]}  b4 {[%clk 0:00:03]} 65. Re2+ {[%clk 0:00:03]}  Kd5 {[%clk 0:00:03]} 66. Kf5 {[%clk 0:00:04]}  a5 {[%clk 0:00:03]} 67. Rd2+ {[%clk 0:00:04]}  Kc4 {[%clk 0:00:03]} 68. Ke5 {[%clk 0:00:04]}  Kc3 {[%clk 0:00:03]} 69. Rh2 {[%clk 0:00:04]}  Kc4 {[%clk 0:00:02]} 70. Be3 {[%clk 0:00:03]}  Ra3 {[%clk 0:00:02]} 71. Ke4 {[%clk 0:00:03]}  Ra4 {[%clk 0:00:01]} 72. Bc1 {[%clk 0:00:02]}  b3 {[%clk 0:00:01]} 73. axb3+ {[%clk 0:00:03]}  Kxb3+ {[%clk 0:00:01]} 74. Kd3 {[%clk 0:00:04]}  Rb4 {[%clk 0:00:01]} 75. Bd2 {[%clk 0:00:04]}  Rb5 {[%clk 0:00:01]} 76. Bc3 {[%clk 0:00:04]}  Rd5+ {[%clk 0:00:01]} 77. Bd4 {[%clk 0:00:04]}  Rb5 {[%clk 0:00:02]} 78. Rb2+ {[%clk 0:00:04]}  Ka4 {[%clk 0:00:02]} 79. Rg2 {[%clk 0:00:04]}  Kb3 {[%clk 0:00:03]} 80. Rg1 {[%clk 0:00:05]}  Rb4 {[%clk 0:00:03]} 81. Rb1+ {[%clk 0:00:05]}  Ka4 {[%clk 0:00:03]} 82. Ra1+ {[%clk 0:00:05]}  Kb5 {[%clk 0:00:04]} 83. Bc3 {[%clk 0:00:05]}  Ra4 {[%clk 0:00:04]} 84. Rf1 {[%clk 0:00:06]}  Kc6 {[%clk 0:00:04]} 85. Rf5 {[%clk 0:00:06]}  Rh4 {[%clk 0:00:05]} 86. Bxa5 {[%clk 0:00:06]}  Rh3+ {[%clk 0:00:04]} 87. Kc4 {[%clk 0:00:06]}  Rh4+ {[%clk 0:00:05]} 88. Kb3 {[%clk 0:00:07]}  Rh3+ {[%clk 0:00:05]} 89. Bc3 {[%clk 0:00:07]}  Rh4 {[%clk 0:00:06]} 90. Rg5 {[%clk 0:00:06]}  Rf4 {[%clk 0:00:06]} 91. Kc2 {[%clk 0:00:06]}  Re4 {[%clk 0:00:07]} 92. Kd3 {[%clk 0:00:06]}  Rh4 {[%clk 0:00:07]} 93. Bd4 {[%clk 0:00:06]}  Kd6 {[%clk 0:00:08]} 94. Kc4 {[%clk 0:00:07]}  Ke6 {[%clk 0:00:08]} 95. Re5+ {[%clk 0:00:05]}  Kd6 {[%clk 0:00:09]} 96. Rf5 {[%clk 0:00:06]}  Re4 {[%clk 0:00:09]} 97. Ra5 {[%clk 0:00:05]}  Ke6 {[%clk 0:00:09]} 98. Ra6+ {[%clk 0:00:06]}  Kf5 {[%clk 0:00:09]} 99. Kd5 {[%clk 0:00:07]}  Re1 {[%clk 0:00:08]} 100. Rf6+ {[%clk 0:00:07]}  Kg5 {[%clk 0:00:09]} 101. Rf8 {[%clk 0:00:06]}  Re2 {[%clk 0:00:09]} 102. Be5 {[%clk 0:00:06]}  Ra2 {[%clk 0:00:09]} 103. Bf4+ {[%clk 0:00:05]}  Kg4 {[%clk 0:00:09]} 104. Be3 {[%clk 0:00:05]}  Ra5+ {[%clk 0:00:09]} 105. Ke4 {[%clk 0:00:05]}  Ra4+ {[%clk 0:00:09]} 106. Bd4 {[%clk 0:00:06]}  Rb4 {[%clk 0:00:10]} 107. Rg8+ {[%clk 0:00:06]}  Kh4 {[%clk 0:00:10]} 108. Ke5 {[%clk 0:00:06]}  Ra4 {[%clk 0:00:10]} 109. Bf2+ {[%clk 0:00:04]}  Kh3 {[%clk 0:00:10]} 110. Kf5 {[%clk 0:00:04]}  Kh2 {[%clk 0:00:06]} 111. Be3 {[%clk 0:00:04]}  Ra3 {[%clk 0:00:03]} 112. Kf4 {[%clk 0:00:04]}  Ra4+ {[%clk 0:00:02]} 113. Kf3 {[%clk 0:00:04]}  Kh3 {[%clk 0:00:03]} 114. Rg3+ {[%clk 0:00:02]}  Kh4 {[%clk 0:00:03]} 115. Rg6 {[%clk 0:00:01]}  Kh3 {[%clk 0:00:04]} 116. Rh6+ {[%clk 0:00:01]}  Rh4 {[%clk 0:00:04]} 117. Rg6 {[%clk 0:00:01]}  Ra4 {[%clk 0:00:04]} 118. Rg8 {[%clk 0:00:02]}  Rb4 {[%clk 0:00:04]} 119. Rg7 {[%clk 0:00:02]}  Ra4 {[%clk 0:00:04]} 120. Rg3+ {[%clk 0:00:03]}  Kh4 {[%clk 0:00:04]} 121. Rg1 {[%clk 0:00:04]}  Kh5 {[%clk 0:00:05]} 122. Rg5+ {[%clk 0:00:04]}  Kh4 {[%clk 0:00:05]} 123. Rg6 {[%clk 0:00:05]}  Kh3 {[%clk 0:00:06]} 1/2-1/2


[Site "https://www.chess.com"]

[Event "Titled Tuesday Blitz February 14 Early 2023"]
[White "Korobov, Anton"]
[Black "Zhigalko, Sergei"]
[WhiteFideId "14105730"]
[BlackFideId "13502956"]
[WhiteElo "2664"]
[BlackElo "2572"]
[Result "1-0"]
[Round "10"]
[TimeControl "180+2"]
[Date "2023.02.14"]
[WhiteClock "0:00:44"]
[BlackClock "0:00:01"]

1. d4 {[%clk 0:03:00]}  Nf6 {[%clk 0:03:00]} 2. c4 {[%clk 0:03:01]}  e6 {[%clk 0:03:00]} 3. Nf3 {[%clk 0:03:01]}  b6 {[%clk 0:02:56]} 4. a3 {[%clk 0:03:01]}  Ba6 {[%clk 0:02:52]} 5. Qc2 {[%clk 0:03:01]}  Bb7 {[%clk 0:02:53]} 6. Nc3 {[%clk 0:03:01]}  c5 {[%clk 0:02:53]} 7. dxc5 {[%clk 0:03:02]}  bxc5 {[%clk 0:02:50]} 8. Bf4 {[%clk 0:03:02]}  Qb6 {[%clk 0:02:45]} 9. e3 {[%clk 0:03:00]}  Be7 {[%clk 0:02:44]} 10. Be2 {[%clk 0:02:59]}  O-O {[%clk 0:02:44]} 11. h3 {[%clk 0:02:57]}  Rd8 {[%clk 0:02:43]} 12. O-O {[%clk 0:02:57]}  d6 {[%clk 0:02:41]} 13. Rfd1 {[%clk 0:02:54]}  h6 {[%clk 0:02:38]} 14. b4 {[%clk 0:02:50]}  Nbd7 {[%clk 0:02:27]} 15. Rab1 {[%clk 0:02:48]}  cxb4 {[%clk 0:02:14]} 16. axb4 {[%clk 0:02:47]}  Rac8 {[%clk 0:02:03]} 17. Bg3 {[%clk 0:02:37]}  Qc6 {[%clk 0:01:52]} 18. Bf1 {[%clk 0:02:32]}  Nb6 {[%clk 0:01:50]} 19. Nd4 {[%clk 0:02:26]}  Qe8 {[%clk 0:01:47]} 20. Qa2 {[%clk 0:02:22]}  Ne4 {[%clk 0:01:37]} 21. Nxe4 {[%clk 0:02:15]}  Bxe4 {[%clk 0:01:38]} 22. Rbc1 {[%clk 0:02:14]}  Qa4 {[%clk 0:00:49]} 23. Qxa4 {[%clk 0:02:05]}  Nxa4 {[%clk 0:00:50]} 24. Nb5 {[%clk 0:02:05]}  e5 {[%clk 0:00:22]} 25. Nxa7 {[%clk 0:01:59]}  Rb8 {[%clk 0:00:21]} 26. Nb5 {[%clk 0:01:50]}  Bc6 {[%clk 0:00:18]} 27. Rd2 {[%clk 0:01:43]}  f6 {[%clk 0:00:14]} 28. f3 {[%clk 0:01:33]}  Bxb5 {[%clk 0:00:06]} 29. cxb5 {[%clk 0:01:32]}  d5 {[%clk 0:00:07]} 30. Rb1 {[%clk 0:01:17]}  Nc3 {[%clk 0:00:05]} 31. Rb3 {[%clk 0:01:10]}  Nxb5 {[%clk 0:00:06]} 32. f4 {[%clk 0:01:08]}  Nd6 {[%clk 0:00:04]} 33. Rxd5 {[%clk 0:01:07]}  Ne4 {[%clk 0:00:04]} 34. Bc4 {[%clk 0:01:01]}  Kf8 {[%clk 0:00:04]} 35. Be1 {[%clk 0:01:00]}  exf4 {[%clk 0:00:02]} 36. exf4 {[%clk 0:00:59]}  Rbc8 {[%clk 0:00:01]} 37. Rxd8+ {[%clk 0:00:56]}  Bxd8 {[%clk 0:00:02]} 38. Bd3 {[%clk 0:00:54]}  Bb6+ {[%clk 0:00:03]} 39. Kf1 {[%clk 0:00:54]}  Nd6 {[%clk 0:00:03]} 40. b5 {[%clk 0:00:54]}  Rc1 {[%clk 0:00:03]} 41. Ke2 {[%clk 0:00:55]}  Ke7 {[%clk 0:00:03]} 42. Bf2 {[%clk 0:00:53]}  Bxf2 {[%clk 0:00:01]} 43. Kxf2 {[%clk 0:00:54]}  Kd7 {[%clk 0:00:02]} 44. b6 {[%clk 0:00:54]}  Kc8 {[%clk 0:00:02]} 45. Be2 {[%clk 0:00:47]}  Rc5 {[%clk 0:00:02]} 46. Bf3 {[%clk 0:00:46]}  Rb5 {[%clk 0:00:02]} 47. Rxb5 {[%clk 0:00:45]}  Nxb5 {[%clk 0:00:03]} 48. Ke3 {[%clk 0:00:46]}  Kd7 {[%clk 0:00:02]} 49. Ke4 {[%clk 0:00:43]}  Nd6+ {[%clk 0:00:02]} 50. Kd5 {[%clk 0:00:44]}  Nf5 {[%clk 0:00:01]} 51. Bg4 {[%clk 0:00:44]} 1-0


[Site "https://www.chess.com"]

[Event "Titled Tuesday Blitz February 14 Early 2023"]
[White "Van Foreest, Jorden"]
[Black "Sychev, Klementy"]
[WhiteFideId "1039784"]
[BlackFideId "4114060"]
[WhiteElo "2689"]
[BlackElo "2547"]
[Result "1-0"]
[Round "10"]
[TimeControl "180+2"]
[Date "2023.02.14"]
[WhiteClock "0:00:52"]
[BlackClock "0:00:01"]

1. e4 {[%clk 0:03:00]}  e5 {[%clk 0:02:59]} 2. Nf3 {[%clk 0:03:01]}  Nc6 {[%clk 0:03:00]} 3. Bc4 {[%clk 0:03:01]}  Nf6 {[%clk 0:02:59]} 4. d3 {[%clk 0:03:02]}  Bc5 {[%clk 0:02:59]} 5. O-O {[%clk 0:03:02]}  O-O {[%clk 0:02:58]} 6. Nc3 {[%clk 0:03:02]}  h6 {[%clk 0:02:56]} 7. h3 {[%clk 0:02:59]}  a6 {[%clk 0:02:53]} 8. a4 {[%clk 0:02:58]}  d6 {[%clk 0:02:51]} 9. Be3 {[%clk 0:02:58]}  Be6 {[%clk 0:02:44]} 10. Bxc5 {[%clk 0:02:55]}  dxc5 {[%clk 0:02:43]} 11. Bxe6 {[%clk 0:02:55]}  fxe6 {[%clk 0:02:43]} 12. b3 {[%clk 0:02:44]}  Rf7 {[%clk 0:02:34]} 13. Nb1 {[%clk 0:02:37]}  g5 {[%clk 0:02:11]} 14. Nh2 {[%clk 0:02:34]}  h5 {[%clk 0:02:04]} 15. Nd2 {[%clk 0:02:34]}  Rg7 {[%clk 0:02:03]} 16. Nc4 {[%clk 0:02:20]}  Qe8 {[%clk 0:01:34]} 17. f3 {[%clk 0:01:41]}  Qg6 {[%clk 0:01:25]} 18. c3 {[%clk 0:01:42]}  Kh7 {[%clk 0:01:18]} 19. Ra2 {[%clk 0:01:40]}  Rag8 {[%clk 0:01:17]} 20. Qe1 {[%clk 0:01:36]}  Qh6 {[%clk 0:01:15]} 21. Raf2 {[%clk 0:01:34]}  Rg6 {[%clk 0:01:02]} 22. Qe3 {[%clk 0:01:34]}  Nd7 {[%clk 0:00:56]} 23. a5 {[%clk 0:01:34]}  Qf8 {[%clk 0:00:54]} 24. g3 {[%clk 0:01:32]}  Qe7 {[%clk 0:00:43]} 25. Kh1 {[%clk 0:01:32]}  Qg7 {[%clk 0:00:40]} 26. Qe2 {[%clk 0:01:29]}  Qh6 {[%clk 0:00:36]} 27. Rg1 {[%clk 0:01:29]}  Rf6 {[%clk 0:00:35]} 28. Nf1 {[%clk 0:01:28]}  Ne7 {[%clk 0:00:26]} 29. Nfe3 {[%clk 0:01:29]}  Ng6 {[%clk 0:00:26]} 30. Rh2 {[%clk 0:01:29]}  Qf8 {[%clk 0:00:25]} 31. f4 {[%clk 0:01:25]}  gxf4 {[%clk 0:00:14]} 32. Qxh5+ {[%clk 0:01:25]}  Kg7 {[%clk 0:00:13]} 33. gxf4 {[%clk 0:01:25]}  exf4 {[%clk 0:00:12]} 34. Ng4 {[%clk 0:01:21]}  Rh8 {[%clk 0:00:09]} 35. Qg5 {[%clk 0:01:20]}  f3 {[%clk 0:00:04]} 36. Nxf6 {[%clk 0:01:15]}  Qxf6 {[%clk 0:00:05]} 37. Qxf6+ {[%clk 0:01:12]}  Kxf6 {[%clk 0:00:06]} 38. Rg3 {[%clk 0:01:11]}  Nh4 {[%clk 0:00:06]} 39. d4 {[%clk 0:01:09]}  cxd4 {[%clk 0:00:06]} 40. cxd4 {[%clk 0:01:09]}  c5 {[%clk 0:00:07]} 41. e5+ {[%clk 0:01:02]}  Kf5 {[%clk 0:00:07]} 42. Rg4 {[%clk 0:00:59]}  cxd4 {[%clk 0:00:06]} 43. Nd6+ {[%clk 0:01:00]}  Kxe5 {[%clk 0:00:04]} 44. Nf7+ {[%clk 0:01:01]}  Kd5 {[%clk 0:00:03]} 45. Nxh8 {[%clk 0:01:01]}  Nf5 {[%clk 0:00:03]} 46. Ng6 {[%clk 0:00:57]}  d3 {[%clk 0:00:03]} 47. Nf4+ {[%clk 0:00:56]}  Ke4 {[%clk 0:00:02]} 48. Nxe6+ {[%clk 0:00:57]}  Ke3 {[%clk 0:00:02]} 49. Ng5 {[%clk 0:00:53]}  f2 {[%clk 0:00:01]} 50. Re4+ {[%clk 0:00:52]} 1-0


[Site "https://www.chess.com"]

[Event "Titled Tuesday Blitz February 14 Early 2023"]
[White "Madaminov, Mukhiddin"]
[Black "Bok, Benjamin"]
[WhiteFideId "14210703"]
[BlackFideId "1017063"]
[WhiteElo "2422"]
[BlackElo "2607"]
[Result "1-0"]
[Round "10"]
[TimeControl "180+2"]
[Date "2023.02.14"]
[WhiteClock "0:00:17"]
[BlackClock "0:00:03"]

1. d4 {[%clk 0:03:00]}  Nf6 {[%clk 0:03:00]} 2. Nc3 {[%clk 0:02:58]}  d5 {[%clk 0:02:59]} 3. Bf4 {[%clk 0:02:58]}  c5 {[%clk 0:02:59]} 4. e4 {[%clk 0:02:58]}  cxd4 {[%clk 0:02:59]} 5. Qxd4 {[%clk 0:02:58]}  Nc6 {[%clk 0:02:59]} 6. Bb5 {[%clk 0:02:58]}  Bd7 {[%clk 0:02:59]} 7. Bxc6 {[%clk 0:02:58]}  Bxc6 {[%clk 0:03:00]} 8. e5 {[%clk 0:02:59]}  Nd7 {[%clk 0:03:01]} 9. e6 {[%clk 0:02:59]}  fxe6 {[%clk 0:03:02]} 10. Nf3 {[%clk 0:03:00]}  Qb6 {[%clk 0:03:02]} 11. Qd2 {[%clk 0:02:59]}  d4 {[%clk 0:03:03]} 12. Qxd4 {[%clk 0:02:59]}  Bxf3 {[%clk 0:03:02]} 13. Qxb6 {[%clk 0:02:58]}  axb6 {[%clk 0:03:03]} 14. gxf3 {[%clk 0:02:59]}  g6 {[%clk 0:03:03]} 15. Nb5 {[%clk 0:02:44]}  Kf7 {[%clk 0:03:01]} 16. a3 {[%clk 0:02:05]}  Bg7 {[%clk 0:02:33]} 17. O-O-O {[%clk 0:02:03]}  Nc5 {[%clk 0:02:33]} 18. Rhe1 {[%clk 0:01:59]}  Ra5 {[%clk 0:02:17]} 19. Nd4 {[%clk 0:01:13]}  e5 {[%clk 0:01:56]} 20. b4 {[%clk 0:01:10]}  Rxa3 {[%clk 0:01:47]} 21. Bxe5 {[%clk 0:01:10]}  Bxe5 {[%clk 0:01:18]} 22. Rxe5 {[%clk 0:01:05]}  Ra1+ {[%clk 0:01:02]} 23. Kd2 {[%clk 0:01:04]}  Rxd1+ {[%clk 0:01:03]} 24. Kxd1 {[%clk 0:01:04]}  Rd8 {[%clk 0:01:04]} 25. c3 {[%clk 0:00:42]}  Nb3 {[%clk 0:00:54]} 26. Re4 {[%clk 0:00:41]}  e5 {[%clk 0:00:49]} 27. Kc2 {[%clk 0:00:40]}  exd4 {[%clk 0:00:33]} 28. Kxb3 {[%clk 0:00:40]}  d3 {[%clk 0:00:34]} 29. Rd4 {[%clk 0:00:32]}  Rxd4 {[%clk 0:00:22]} 30. cxd4 {[%clk 0:00:31]}  Ke6 {[%clk 0:00:23]} 31. Kc3 {[%clk 0:00:31]}  Kd5 {[%clk 0:00:23]} 32. Kxd3 {[%clk 0:00:30]}  b5 {[%clk 0:00:23]} 33. f4 {[%clk 0:00:27]}  b6 {[%clk 0:00:17]} 34. h3 {[%clk 0:00:22]}  h6 {[%clk 0:00:16]} 35. h4 {[%clk 0:00:20]}  h5 {[%clk 0:00:14]} 36. f3 {[%clk 0:00:20]}  Kd6 {[%clk 0:00:06]} 37. Ke4 {[%clk 0:00:21]}  Ke6 {[%clk 0:00:06]} 38. d5+ {[%clk 0:00:19]}  Kf6 {[%clk 0:00:06]} 39. f5 {[%clk 0:00:17]}  g5 {[%clk 0:00:01]} 40. hxg5+ {[%clk 0:00:17]}  Kxg5 {[%clk 0:00:02]} 41. Ke5 {[%clk 0:00:17]}  h4 {[%clk 0:00:02]} 42. d6 {[%clk 0:00:17]}  h3 {[%clk 0:00:03]} 43. d7 {[%clk 0:00:17]} 1-0


[Site "https://www.chess.com"]